[Event "*** Titled Tuesday 3|2 Blitz"]
[Site "Chess.com"]
[Date "2016.08.02"]
[Round "2"]
[White "MinhGTrAn"]
[Black "dabee"]
[Result "1-0"]
[WhiteElo "2587"]
[BlackElo "2416"]
[TimeControl "180+2"]
[EndTime "11:24:27 PDT"]
[Termination "MinhGTrAn won by resignation"]

1. d4 {[%clk 0:03:01.9]} 1... d5 {[%clk 0:02:59.9]} 2. c4 {[%clk 0:03:02.3]}
2... c6 {[%clk 0:03:01]} 3. Nc3 {[%clk 0:03:03.7]} 3... Nf6 {[%clk 0:03:01]} 4.
e3 {[%clk 0:03:05.2]} 4... e6 {[%clk 0:02:59.6]} 5. Nf3 {[%clk 0:03:05.7]} 5...
Nbd7 {[%clk 0:02:59.7]} 6. Bd3 {[%clk 0:03:06.5]} 6... Bd6 {[%clk 0:03:00.5]} 7.
O-O {[%clk 0:03:05.6]} 7... O-O {[%clk 0:03:00.7]} 8. b3 {[%clk 0:03:02.1]} 8...
Qe7 {[%clk 0:02:56.7]} 9. Bb2 {[%clk 0:03:02.8]} 9... dxc4 {[%clk 0:02:40.3]}
10. Bxc4 {[%clk 0:03:04.7]} 10... e5 {[%clk 0:02:39.3]} 11. a4 {[%clk
0:02:57.3]} 11... e4 {[%clk 0:02:33.8]} 12. Nd2 {[%clk 0:02:57.2]} 12... Nb6
{[%clk 0:02:34.7]} 13. Be2 {[%clk 0:02:51.4]} 13... Nbd5 {[%clk 0:02:24.6]} 14.
Nc4 {[%clk 0:02:47.3]} 14... Bc7 {[%clk 0:02:24]} 15. Ba3 {[%clk 0:02:36.4]}
15... Nb4 {[%clk 0:02:24.3]} 16. Na2 {[%clk 0:02:33]} 16... a5 {[%clk
0:02:19.8]} 17. Qd2 {[%clk 0:02:25.7]} 17... Nfd5 {[%clk 0:02:19.4]} 18. f4
{[%clk 0:02:11.7]} 18... f5 {[%clk 0:01:56.5]} 19. Ne5 {[%clk 0:02:08.3]} 19...
Be6 {[%clk 0:01:45.8]} 20. Bc4 {[%clk 0:02:05.6]} 20... Bd6 {[%clk 0:01:45.7]}
21. Nc3 {[%clk 0:01:57.5]} 21... Bxe5 {[%clk 0:01:28.6]} 22. fxe5 {[%clk
0:01:52.5]} 22... Rfd8 {[%clk 0:01:17.3]} 23. Bxd5 {[%clk 0:01:46]} 23... cxd5
{[%clk 0:01:13.2]} 24. Nb5 {[%clk 0:01:43.7]} 24... Rac8 {[%clk 0:01:06.7]} 25.
Rac1 {[%clk 0:01:43.9]} 25... Rc6 {[%clk 0:00:59.3]} 26. Bxb4 {[%clk 0:01:28.1]}
26... axb4 {[%clk 0:00:49.8]} 27. Nd6 {[%clk 0:01:20.1]} 27... Qg5 {[%clk
0:00:25.6]} 28. Nxb7 {[%clk 0:01:17.5]} 28... Rdc8 {[%clk 0:00:21.1]} 29. Rxc6
{[%clk 0:01:16.6]} 29... Rxc6 {[%clk 0:00:21.9]} 30. Nc5 {[%clk 0:01:18.5]}
30... Bc8 {[%clk 0:00:21.1]} 31. Rf4 {[%clk 0:01:18.4]} 31... Rb6 {[%clk
0:00:15.1]} 32. h4 {[%clk 0:01:14.1]} 32... Qe7 {[%clk 0:00:12.7]} 33. g3 {[%clk
0:01:08]} 33... h6 {[%clk 0:00:13]} 34. Kg2 {[%clk 0:01:02.2]} 34... g5 {[%clk
0:00:13.8]} 35. hxg5 {[%clk 0:01:04.1]} 35... hxg5 {[%clk 0:00:15]} 36. Rf1
{[%clk 0:01:05.1]} 36... Rh6 {[%clk 0:00:13.3]} 37. Rh1 {[%clk 0:01:06.2]} 37...
Rxh1 {[%clk 0:00:12.4]} 38. Kxh1 {[%clk 0:01:08.1]} 38... Qh7+ {[%clk
0:00:12.9]} 39. Qh2 {[%clk 0:01:08.6]} 39... Qg6 {[%clk 0:00:12.4]} 40. a5
{[%clk 0:01:04.6]} 40... f4 {[%clk 0:00:13.1]} 41. gxf4 {[%clk 0:01:04]} 41...
gxf4 {[%clk 0:00:13.8]} 42. Qxf4 {[%clk 0:01:02.6]} 42... Bg4 {[%clk 0:00:14.7]}
43. Qg3 {[%clk 0:00:51.7]} 43... Bf3+ {[%clk 0:00:14.7]} 44. Kh2 {[%clk
0:00:53]} 44... Bg4 {[%clk 0:00:15.4]} 45. Kg1 {[%clk 0:00:51.5]} 45... Kf7
{[%clk 0:00:11.8]} 46. e6+ {[%clk 0:00:50.1]} 46... Ke7 {[%clk 0:00:09.3]} 47.
Qc7+ {[%clk 0:00:49.5]} 47... Kf6 {[%clk 0:00:08.1]} 48. Qf7+ {[%clk 0:00:48.9]}
48... Qxf7 {[%clk 0:00:08.8]} 49. exf7 {[%clk 0:00:50.8]} 1-0

[Event "*** Titled Tuesday 3|2 Blitz"]
[Site "Chess.com"]
[Date "2016.08.02"]
[Round "2"]
[White "Blitzstream"]
[Black "TigranLPetrosyan"]
[Result "1/2-1/2"]
[WhiteElo "2470"]
[BlackElo "2655"]
[TimeControl "180+2"]
[EndTime "11:24:29 PDT"]
[Termination "Game drawn - insufficient material"]

1. d4 {[%clk 0:03:01.5]} 1... d5 {[%clk 0:02:58.3]} 2. Nf3 {[%clk 0:03:02.3]}
2... c6 {[%clk 0:02:59.6]} 3. Bf4 {[%clk 0:03:02.7]} 3... Nf6 {[%clk 0:03:01.5]}
4. e3 {[%clk 0:03:03.5]} 4... g6 {[%clk 0:03:01.7]} 5. c4 {[%clk 0:03:04.3]}
5... Bg7 {[%clk 0:03:03.1]} 6. Nc3 {[%clk 0:03:05.3]} 6... O-O {[%clk
0:03:04.1]} 7. Be2 {[%clk 0:03:06.4]} 7... Bg4 {[%clk 0:03:04.5]} 8. Qb3 {[%clk
0:03:03.8]} 8... Qb6 {[%clk 0:03:01.8]} 9. c5 {[%clk 0:03:01.5]} 9... Qxb3
{[%clk 0:03:01.2]} 10. axb3 {[%clk 0:03:03.4]} 10... Bxf3 {[%clk 0:03:00.6]} 11.
Bxf3 {[%clk 0:03:03.4]} 11... Nbd7 {[%clk 0:03:01.9]} 12. O-O-O {[%clk
0:02:48.5]} 12... Rfe8 {[%clk 0:03:02]} 13. h3 {[%clk 0:02:38.2]} 13... e5
{[%clk 0:03:00.7]} 14. Bh2 {[%clk 0:02:39.3]} 14... exd4 {[%clk 0:02:51.3]} 15.
exd4 {[%clk 0:02:39.9]} 15... a5 {[%clk 0:02:46.7]} 16. Kc2 {[%clk 0:02:39]}
16... b6 {[%clk 0:02:47.3]} 17. cxb6 {[%clk 0:02:36.5]} 17... Nxb6 {[%clk
0:02:49.2]} 18. Rhe1 {[%clk 0:02:30.1]} 18... Nfd7 {[%clk 0:02:48.7]} 19. Rxe8+
{[%clk 0:02:26.3]} 19... Rxe8 {[%clk 0:02:48.2]} 20. Bd6 {[%clk 0:02:17.7]}
20... Nf8 {[%clk 0:02:41]} 21. Bc7 {[%clk 0:01:34.1]} 21... Nbd7 {[%clk
0:02:41.1]} 22. Bxa5 {[%clk 0:01:33.3]} 22... Ne6 {[%clk 0:02:41.9]} 23. Ne2
{[%clk 0:01:33.9]} 23... Ng5 {[%clk 0:02:42.9]} 24. Ng1 {[%clk 0:01:22.2]} 24...
Nf8 {[%clk 0:02:15.3]} 25. h4 {[%clk 0:01:06.8]} 25... Ne4 {[%clk 0:02:12.6]}
26. Bxe4 {[%clk 0:01:05.4]} 26... Rxe4 {[%clk 0:02:14.5]} 27. Nf3 {[%clk
0:01:06.4]} 27... Ne6 {[%clk 0:02:13.5]} 28. Bc3 {[%clk 0:01:07.8]} 28... h6
{[%clk 0:02:03.7]} 29. g3 {[%clk 0:00:56.6]} 29... g5 {[%clk 0:02:03.9]} 30.
hxg5 {[%clk 0:00:58.5]} 30... hxg5 {[%clk 0:02:05.8]} 31. Re1 {[%clk 0:00:29.9]}
31... Nxd4+ {[%clk 0:01:52.7]} 32. Nxd4 {[%clk 0:00:29.3]} 32... Rxe1 {[%clk
0:01:53.6]} 33. Bxe1 {[%clk 0:00:31.2]} 33... Bxd4 {[%clk 0:01:55.1]} 34. f3
{[%clk 0:00:31.3]} 34... f6 {[%clk 0:01:49.6]} 35. g4 {[%clk 0:00:32.4]} 35...
Kf7 {[%clk 0:01:50.9]} 36. Bc3 {[%clk 0:00:33.7]} 36... Be5 {[%clk 0:01:52.1]}
37. Kd3 {[%clk 0:00:34.8]} 37... Ke6 {[%clk 0:01:52.9]} 38. Bd4 {[%clk
0:00:30.1]} 38... Kd6 {[%clk 0:01:47.2]} 39. b4 {[%clk 0:00:30.3]} 39... Kc7
{[%clk 0:01:48.3]} 40. b3 {[%clk 0:00:25.5]} 40... Bxd4 {[%clk 0:01:44.1]} 41.
Kxd4 {[%clk 0:00:26.5]} 41... Kb6 {[%clk 0:01:46]} 42. Kd3 {[%clk 0:00:27.8]}
42... Kb5 {[%clk 0:01:45.4]} 43. Kc3 {[%clk 0:00:29]} 43... d4+ {[%clk
0:01:46.9]} 44. Kxd4 {[%clk 0:00:30.3]} 44... Kxb4 {[%clk 0:01:48.8]} 45. Ke4
{[%clk 0:00:31.9]} 45... Kxb3 {[%clk 0:01:50]} 46. Kf5 {[%clk 0:00:33.8]} 46...
c5 {[%clk 0:01:51.6]} 47. Kxf6 {[%clk 0:00:35.7]} 47... c4 {[%clk 0:01:53.5]}
48. Kxg5 {[%clk 0:00:37.5]} 48... c3 {[%clk 0:01:55.4]} 49. f4 {[%clk
0:00:39.4]} 49... c2 {[%clk 0:01:57.3]} 50. Kg6 {[%clk 0:00:41.3]} 50... c1=Q
{[%clk 0:01:59.2]} 51. f5 {[%clk 0:00:43.2]} 51... Kc4 {[%clk 0:02:00.2]} 52. f6
{[%clk 0:00:44.5]} 52... Qf4 {[%clk 0:01:56]} 53. f7 {[%clk 0:00:44]} 53... Kd5
{[%clk 0:01:56.8]} 54. Kg7 {[%clk 0:00:45.5]} 54... Qxg4+ {[%clk 0:01:57.4]} 55.
Kh8 {[%clk 0:00:46.3]} 55... Qh5+ {[%clk 0:01:58.6]} 56. Kg8 {[%clk 0:00:47.8]}
56... Qg6+ {[%clk 0:01:59.6]} 57. Kh8 {[%clk 0:00:49.3]} 57... Qf6+ {[%clk
0:01:54.5]} 58. Kg8 {[%clk 0:00:50.4]} 58... Qe6 {[%clk 0:01:54.6]} 59. Kh8
{[%clk 0:00:51.1]} 59... Qe7 {[%clk 0:01:54.5]} 60. Kg8 {[%clk 0:00:51.8]} 60...
Qg5+ {[%clk 0:01:55]} 61. Kh8 {[%clk 0:00:52.2]} 61... Qd8+ {[%clk 0:01:37.5]}
62. Kg7 {[%clk 0:00:53]} 62... Qe7 {[%clk 0:01:33.7]} 63. Kg8 {[%clk 0:00:54.2]}
63... Qe6 {[%clk 0:01:32.3]} 64. Kg7 {[%clk 0:00:51.4]} 64... Qg4+ {[%clk
0:01:32]} 65. Kh7 {[%clk 0:00:49.9]} 65... Qh5+ {[%clk 0:01:31.8]} 66. Kg8
{[%clk 0:00:51]} 66... Qg6+ {[%clk 0:01:31.2]} 67. Kh8 {[%clk 0:00:51.9]} 67...
Ke6 {[%clk 0:01:29.9]} 68. f8=Q {[%clk 0:00:52.4]} 68... Qf6+ {[%clk 0:01:29.8]}
69. Qg7 {[%clk 0:00:52.7]} 69... Kf5 {[%clk 0:01:27.3]} 70. Qxf6+ {[%clk
0:00:53.7]} 70... Kxf6 {[%clk 0:01:29.2]} 1/2-1/2

[Event "*** Titled Tuesday 3|2 Blitz"]
[Site "Chess.com"]
[Date "2016.08.02"]
[Round "2"]
[White "sandropozo"]
[Black "workhard91"]
[Result "0-1"]
[WhiteElo "2377"]
[BlackElo "2366"]
[TimeControl "180+2"]
[EndTime "11:24:29 PDT"]
[Termination "workhard91 won by checkmate"]

1. d4 {[%clk 0:02:59.4]} 1... Nf6 {[%clk 0:00:47.8]} 2. Nf3 {[%clk 0:02:57.4]}
2... g6 {[%clk 0:00:48.9]} 3. g3 {[%clk 0:02:57.2]} 3... Bg7 {[%clk 0:00:50.5]}
4. Bg2 {[%clk 0:02:58.2]} 4... O-O {[%clk 0:00:52.2]} 5. O-O {[%clk 0:02:58.7]}
5... d5 {[%clk 0:00:52.8]} 6. c4 {[%clk 0:02:58.9]} 6... c6 {[%clk 0:00:54.2]}
7. cxd5 {[%clk 0:02:59]} 7... cxd5 {[%clk 0:00:54.8]} 8. Nc3 {[%clk 0:02:56.8]}
8... Ne4 {[%clk 0:00:55.4]} 9. Qb3 {[%clk 0:02:49.7]} 9... Nxc3 {[%clk
0:00:54.1]} 10. Qxc3 {[%clk 0:02:48.6]} 10... Nc6 {[%clk 0:00:54.9]} 11. Bf4
{[%clk 0:02:46.4]} 11... Qb6 {[%clk 0:00:46.7]} 12. Ne5 {[%clk 0:01:28.1]} 12...
Nxd4 {[%clk 0:00:38]} 13. Qe3 {[%clk 0:00:53]} 13... e6 {[%clk 0:00:27.9]} 14.
h4 {[%clk 0:00:46]} 14... Nc6 {[%clk 0:00:29.2]} 15. Qxb6 {[%clk 0:00:35.4]}
15... axb6 {[%clk 0:00:31.1]} 16. Nd3 {[%clk 0:00:36.5]} 16... Bd7 {[%clk
0:00:27.7]} 17. Bd6 {[%clk 0:00:36.5]} 17... Rfc8 {[%clk 0:00:28]} 18. e4 {[%clk
0:00:37.5]} 18... dxe4 {[%clk 0:00:24.7]} 19. Bxe4 {[%clk 0:00:38]} 19... Na5
{[%clk 0:00:26.3]} 20. Ne5 {[%clk 0:00:34.8]} 20... Bc6 {[%clk 0:00:25.9]} 21.
Nxc6 {[%clk 0:00:32.2]} 21... Nxc6 {[%clk 0:00:23.1]} 22. h5 {[%clk 0:00:32.9]}
22... Bxb2 {[%clk 0:00:22.8]} 23. Rab1 {[%clk 0:00:34.2]} 23... Bd4 {[%clk
0:00:24.4]} 24. Kg2 {[%clk 0:00:33.1]} 24... Rxa2 {[%clk 0:00:23.1]} 25. hxg6
{[%clk 0:00:34.4]} 25... hxg6 {[%clk 0:00:24]} 26. Rbd1 {[%clk 0:00:28.3]} 26...
Bc5 {[%clk 0:00:23.9]} 27. Bf4 {[%clk 0:00:27.5]} 27... Re2 {[%clk 0:00:20.8]}
28. Bf3 {[%clk 0:00:26.7]} 28... Ra2 {[%clk 0:00:20]} 29. Rd7 {[%clk 0:00:27.4]}
29... Na5 {[%clk 0:00:14.9]} 30. Be5 {[%clk 0:00:26.4]} 30... Nc4 {[%clk
0:00:16]} 31. Bf4 {[%clk 0:00:24.4]} 31... e5 {[%clk 0:00:16.6]} 32. Bg5 {[%clk
0:00:24.4]} 32... f6 {[%clk 0:00:16.1]} 33. Bd5+ {[%clk 0:00:24.7]} 33... Kf8
{[%clk 0:00:17.6]} 34. Bh6+ {[%clk 0:00:23.4]} 34... Ke8 {[%clk 0:00:19]} 35.
Rxb7 {[%clk 0:00:23.4]} 35... Ne3+ {[%clk 0:00:19.8]} 36. Bxe3 {[%clk
0:00:23.4]} 36... Bxe3 {[%clk 0:00:21.7]} 37. Kf3 {[%clk 0:00:23.8]} 37... Bd4
{[%clk 0:00:22.3]} 38. Kg4 {[%clk 0:00:19.2]} 38... Kd8 {[%clk 0:00:20.3]} 39.
Rh1 {[%clk 0:00:19.6]} 39... Rc7 {[%clk 0:00:18.4]} 40. Rh8+ {[%clk 0:00:18.5]}
40... Kd7 {[%clk 0:00:20.1]} 41. Rh7+ {[%clk 0:00:19.4]} 41... Kd6 {[%clk
0:00:21.8]} 42. Rhxc7 {[%clk 0:00:19.1]} 42... Kxd5 {[%clk 0:00:23.4]} 43. f4
{[%clk 0:00:19.6]} 43... Ke4 {[%clk 0:00:24]} 44. fxe5 {[%clk 0:00:19.4]} 44...
Bxe5 {[%clk 0:00:25.9]} 45. Re7 {[%clk 0:00:19.3]} 45... Rg2 {[%clk 0:00:25.6]}
46. Rxb6 {[%clk 0:00:17.7]} 46... Rxg3+ {[%clk 0:00:26.9]} 47. Kh4 {[%clk
0:00:19]} 47... Rg1 {[%clk 0:00:28.8]} 48. Rb3 {[%clk 0:00:14.6]} 48... Kf5
{[%clk 0:00:28.7]} 49. Rf3+ {[%clk 0:00:15.1]} 49... Bf4 {[%clk 0:00:30.1]} 50.
Rh3 {[%clk 0:00:10.9]} 50... Rg4# {[%clk 0:00:31.2]} 0-1

[Event "*** Titled Tuesday 3|2 Blitz"]
[Site "Chess.com"]
[Date "2016.08.02"]
[Round "2"]
[White "shivakaka"]
[Black "GremioPrudente"]
[Result "0-1"]
[WhiteElo "2107"]
[BlackElo "2068"]
[TimeControl "180+2"]
[EndTime "11:24:32 PDT"]
[Termination "GremioPrudente won on time"]

1. e4 {[%clk 0:02:58.3]} 1... e6 {[%clk 0:03:00.4]} 2. d4 {[%clk 0:02:57.9]}
2... d5 {[%clk 0:03:01.4]} 3. e5 {[%clk 0:02:56.5]} 3... c5 {[%clk 0:03:01.7]}
4. c3 {[%clk 0:02:49.7]} 4... Qb6 {[%clk 0:03:02.6]} 5. Nf3 {[%clk 0:02:49.5]}
5... Bd7 {[%clk 0:03:03.6]} 6. Bd3 {[%clk 0:02:47.8]} 6... Bb5 {[%clk 0:03:04]}
7. dxc5 {[%clk 0:02:39.1]} 7... Bxc5 {[%clk 0:03:01.4]} 8. O-O {[%clk 0:02:39]}
8... Bxd3 {[%clk 0:02:59.1]} 9. Qxd3 {[%clk 0:02:38.4]} 9... Qa6 {[%clk
0:02:55.8]} 10. Qd1 {[%clk 0:02:35.1]} 10... Nc6 {[%clk 0:02:50.7]} 11. a4
{[%clk 0:02:26.7]} 11... Bf8 {[%clk 0:02:38.4]} 12. Be3 {[%clk 0:02:18.6]} 12...
b6 {[%clk 0:02:19]} 13. Na3 {[%clk 0:02:11.9]} 13... Bxa3 {[%clk 0:02:16]} 14.
Rxa3 {[%clk 0:02:09.6]} 14... Na5 {[%clk 0:02:08.6]} 15. Nd2 {[%clk 0:01:57.9]}
15... Nc4 {[%clk 0:02:07.1]} 16. Nxc4 {[%clk 0:01:57.6]} 16... Qxc4 {[%clk
0:02:08]} 17. Bd4 {[%clk 0:01:43.9]} 17... Ne7 {[%clk 0:02:06.8]} 18. Qg4 {[%clk
0:01:31.4]} 18... O-O {[%clk 0:01:59.5]} 19. b3 {[%clk 0:01:20.1]} 19... Qc7
{[%clk 0:01:38.6]} 20. h4 {[%clk 0:01:20.5]} 20... Nf5 {[%clk 0:01:37.5]} 21. h5
{[%clk 0:01:19.4]} 21... h6 {[%clk 0:01:35.4]} 22. Qf3 {[%clk 0:01:03.5]} 22...
Rac8 {[%clk 0:01:27.5]} 23. b4 {[%clk 0:00:57.3]} 23... Qc4 {[%clk 0:01:23]} 24.
Rd1 {[%clk 0:00:52.7]} 24... Rc7 {[%clk 0:01:10.2]} 25. g4 {[%clk 0:00:53.4]}
25... Nxd4 {[%clk 0:01:01]} 26. Rxd4 {[%clk 0:00:54.3]} 26... Qc6 {[%clk
0:00:55.5]} 27. g5 {[%clk 0:00:46.6]} 27... hxg5 {[%clk 0:00:52.4]} 28. h6
{[%clk 0:00:45.5]} 28... gxh6 {[%clk 0:00:37]} 29. Qh5 {[%clk 0:00:43.9]} 29...
Kg7 {[%clk 0:00:32.2]} 30. c4 {[%clk 0:00:33.8]} 30... f5 {[%clk 0:00:26.6]} 31.
Rh3 {[%clk 0:00:19.9]} 31... Rh8 {[%clk 0:00:24.4]} 32. c5 {[%clk 0:00:16.3]}
32... bxc5 {[%clk 0:00:22.9]} 33. Rdd3 {[%clk 0:00:16.7]} 33... Qxa4 {[%clk
0:00:18.2]} 34. Rdg3 {[%clk 0:00:17]} 34... Qe8 {[%clk 0:00:08.9]} 35. Qd1
{[%clk 0:00:01.9]} 35... cxb4 {[%clk 0:00:08.4]} 0-1

[Event "*** Titled Tuesday 3|2 Blitz"]
[Site "Chess.com"]
[Date "2016.08.02"]
[Round "2"]
[White "ChessNinja48"]
[Black "WanderingPuppet"]
[Result "0-1"]
[WhiteElo "2326"]
[BlackElo "2268"]
[TimeControl "180+2"]
[EndTime "11:24:37 PDT"]
[Termination "WanderingPuppet won by resignation"]

1. d4 {[%clk 0:03:01.9]} 1... Nc6 {[%clk 0:02:57.8]} 2. Nf3 {[%clk 0:03:01.4]}
2... d6 {[%clk 0:02:58.9]} 3. c4 {[%clk 0:02:57.4]} 3... Bg4 {[%clk 0:02:57.7]}
4. Nc3 {[%clk 0:02:58.2]} 4... Bxf3 {[%clk 0:02:57.9]} 5. gxf3 {[%clk
0:02:59.7]} 5... Nf6 {[%clk 0:02:59.8]} 6. e3 {[%clk 0:02:54.9]} 6... e5 {[%clk
0:03:00.5]} 7. d5 {[%clk 0:02:39]} 7... Nb8 {[%clk 0:02:59.9]} 8. Bd3 {[%clk
0:02:40]} 8... Be7 {[%clk 0:02:59.7]} 9. Bd2 {[%clk 0:02:41]} 9... Nbd7 {[%clk
0:03:00.5]} 10. b4 {[%clk 0:02:41.4]} 10... a5 {[%clk 0:03:01.6]} 11. a3 {[%clk
0:02:42.5]} 11... e4 {[%clk 0:02:47]} 12. fxe4 {[%clk 0:02:28.4]} 12... Ne5
{[%clk 0:02:45.9]} 13. Be2 {[%clk 0:02:29.6]} 13... h5 {[%clk 0:02:41]} 14. f4
{[%clk 0:01:47.5]} 14... Neg4 {[%clk 0:02:37]} 15. h3 {[%clk 0:01:48]} 15... Nh6
{[%clk 0:02:11]} 16. Bf3 {[%clk 0:01:48.8]} 16... Nd7 {[%clk 0:01:57.8]} 17. Ke2
{[%clk 0:01:50]} 17... O-O {[%clk 0:01:47.3]} 18. Rg1 {[%clk 0:01:49.8]} 18...
f5 {[%clk 0:01:43.1]} 19. Nb5 {[%clk 0:01:29.4]} 19... Nf6 {[%clk 0:01:30.1]}
20. Nd4 {[%clk 0:01:06.8]} 20... fxe4 {[%clk 0:01:22.7]} 21. Bh1 {[%clk
0:01:06.9]} 21... Rf7 {[%clk 0:01:14.3]} 22. Bc3 {[%clk 0:01:04.6]} 22... Qd7
{[%clk 0:01:12.8]} 23. Ne6 {[%clk 0:01:05.9]} 23... c6 {[%clk 0:01:07.9]} 24.
Qd4 {[%clk 0:01:00.1]} 24... cxd5 {[%clk 0:01:02.2]} 25. cxd5 {[%clk 0:00:59.5]}
25... Qb5+ {[%clk 0:00:54.1]} 26. Kf2 {[%clk 0:00:59.7]} 26... Nf5 {[%clk
0:00:50.4]} 27. Qd2 {[%clk 0:00:59.8]} 27... Qxd5 {[%clk 0:00:48.4]} 28. Qxd5
{[%clk 0:00:48.1]} 28... Nxd5 {[%clk 0:00:50.3]} 29. Bd2 {[%clk 0:00:49.5]}
29... Bh4+ {[%clk 0:00:49.7]} 30. Ke2 {[%clk 0:00:50]} 30... Re8 {[%clk
0:00:41]} 31. Bxe4 {[%clk 0:00:49.6]} 31... Nxf4+ {[%clk 0:00:21.4]} 32. exf4
{[%clk 0:00:44.8]} 32... Rxe6 {[%clk 0:00:21.3]} 33. Kd3 {[%clk 0:00:46.5]}
33... d5 {[%clk 0:00:15.2]} 34. Bxd5 {[%clk 0:00:38.5]} 34... Rd7 {[%clk
0:00:15.7]} 35. Kc4 {[%clk 0:00:40.1]} 35... Rxd5 {[%clk 0:00:13.1]} 36. Kxd5
{[%clk 0:00:40.6]} 36... Rd6+ {[%clk 0:00:11.2]} 37. Ke5 {[%clk 0:00:42]} 37...
g6 {[%clk 0:00:10.6]} 38. Rad1 {[%clk 0:00:38.8]} 38... Kf7 {[%clk 0:00:09.2]}
39. Bc3 {[%clk 0:00:38.8]} 39... Bf6+ {[%clk 0:00:08.6]} 40. Ke4 {[%clk
0:00:39.6]} 40... Bxc3 {[%clk 0:00:09]} 41. Rxd6 {[%clk 0:00:36.1]} 41... Nxd6+
{[%clk 0:00:10.9]} 42. Kd5 {[%clk 0:00:37.7]} 42... Nf5 {[%clk 0:00:10.7]} 43.
Rc1 {[%clk 0:00:38.4]} 43... axb4 {[%clk 0:00:11.5]} 44. axb4 {[%clk 0:00:37.4]}
44... Bxb4 {[%clk 0:00:13.1]} 45. Rc7+ {[%clk 0:00:39.3]} 45... Kf6 {[%clk
0:00:13.8]} 46. Rxb7 {[%clk 0:00:40.4]} 46... Bd2 {[%clk 0:00:14.4]} 47. Rb6+
{[%clk 0:00:39.8]} 47... Kg7 {[%clk 0:00:15.4]} 48. Ke5 {[%clk 0:00:39.3]} 48...
Be3 {[%clk 0:00:15]} 49. Rb7+ {[%clk 0:00:40.4]} 49... Kh6 {[%clk 0:00:16]} 50.
Rb8 {[%clk 0:00:41.7]} 50... Bd4+ {[%clk 0:00:15.6]} 51. Ke4 {[%clk 0:00:41.8]}
51... Bf6 {[%clk 0:00:15.7]} 52. Rb6 {[%clk 0:00:42.7]} 52... Kg7 {[%clk
0:00:16.5]} 53. Rb7+ {[%clk 0:00:43.4]} 53... Kh6 {[%clk 0:00:17.5]} 54. Rb1
{[%clk 0:00:44.5]} 54... Ng3+ {[%clk 0:00:18]} 55. Kd5 {[%clk 0:00:45.2]} 55...
Bh4 {[%clk 0:00:17.8]} 56. Ke6 {[%clk 0:00:46]} 56... Nf5 {[%clk 0:00:18.8]} 57.
Rb6 {[%clk 0:00:44.6]} 57... Kg7 {[%clk 0:00:19.7]} 58. Rb7+ {[%clk 0:00:45.6]}
58... Kh6 {[%clk 0:00:20.3]} 59. Kf7 {[%clk 0:00:47.1]} 59... Nd6+ {[%clk
0:00:18.5]} 60. Kg8 {[%clk 0:00:48.2]} 0-1

[Event "*** Titled Tuesday 3|2 Blitz"]
[Site "Chess.com"]
[Date "2016.08.02"]
[Round "2"]
[White "igorkovalenko"]
[Black "profofchess"]
[Result "1/2-1/2"]
[WhiteElo "2543"]
[BlackElo "2307"]
[TimeControl "180+2"]
[EndTime "11:24:53 PDT"]
[Termination "Game drawn by agreement"]

1. e4 {[%clk 0:03:01.9]} 1... e6 {[%clk 0:03:01.2]} 2. d4 {[%clk 0:03:03]} 2...
d5 {[%clk 0:03:01.3]} 3. Bd3 {[%clk 0:03:04.6]} 3... dxe4 {[%clk 0:02:59.4]} 4.
Bxe4 {[%clk 0:03:03.6]} 4... Nf6 {[%clk 0:03:00.7]} 5. Bf3 {[%clk 0:03:04.7]}
5... Nc6 {[%clk 0:02:49.5]} 6. Ne2 {[%clk 0:02:58.3]} 6... e5 {[%clk 0:02:34.5]}
7. Bxc6+ {[%clk 0:02:57]} 7... bxc6 {[%clk 0:02:35.7]} 8. Nbc3 {[%clk
0:02:55.1]} 8... exd4 {[%clk 0:01:51.8]} 9. Qxd4 {[%clk 0:02:55.3]} 9... Qxd4
{[%clk 0:01:48.1]} 10. Nxd4 {[%clk 0:02:57.2]} 10... Bd7 {[%clk 0:01:47.6]} 11.
Bf4 {[%clk 0:02:52.3]} 11... Bd6 {[%clk 0:01:48.1]} 12. Bxd6 {[%clk 0:02:50.8]}
12... cxd6 {[%clk 0:01:49.5]} 13. O-O-O {[%clk 0:02:51.1]} 13... O-O-O {[%clk
0:01:48.7]} 14. f3 {[%clk 0:02:50.5]} 14... Rhe8 {[%clk 0:01:44.7]} 15. Rd2
{[%clk 0:02:51.4]} 15... Kc7 {[%clk 0:01:40]} 16. Rhd1 {[%clk 0:02:50.2]} 16...
Bc8 {[%clk 0:01:36.3]} 17. b3 {[%clk 0:02:40.5]} 17... Re5 {[%clk 0:01:17.7]}
18. Kb2 {[%clk 0:02:40.5]} 18... h5 {[%clk 0:01:16.1]} 19. h4 {[%clk 0:02:38.2]}
19... g5 {[%clk 0:01:00.9]} 20. hxg5 {[%clk 0:02:38]} 20... Rxg5 {[%clk
0:01:01.6]} 21. Rh1 {[%clk 0:02:36.1]} 21... Rdg8 {[%clk 0:00:58.5]} 22. Rh2
{[%clk 0:02:36.9]} 22... a6 {[%clk 0:00:56.9]} 23. Rf2 {[%clk 0:02:35]} 23...
Bd7 {[%clk 0:00:55.5]} 24. Nde2 {[%clk 0:02:35.9]} 24... Rf5 {[%clk 0:00:45.8]}
25. Rh4 {[%clk 0:02:28.9]} 25... Ng4 {[%clk 0:00:41.3]} 26. Rf1 {[%clk
0:02:23.8]} 26... Ne3 {[%clk 0:00:42.5]} 27. Rg1 {[%clk 0:02:25.3]} 27... Rxg2
{[%clk 0:00:24.8]} 28. Rxg2 {[%clk 0:02:23.6]} 28... Nxg2 {[%clk 0:00:26.7]} 29.
Rh2 {[%clk 0:02:24.4]} 29... Ne3 {[%clk 0:00:26.5]} 30. Nd4 {[%clk 0:02:22.9]}
30... Rg5 {[%clk 0:00:21.5]} 31. Ne4 {[%clk 0:02:22.2]} 31... Re5 {[%clk
0:00:21.1]} 32. Nf6 {[%clk 0:02:06.5]} 32... Nf5 {[%clk 0:00:22.3]} 33. f4
{[%clk 0:02:04]} 33... Re1 {[%clk 0:00:12.5]} 34. Nxf5 {[%clk 0:02:03.2]} 34...
Bxf5 {[%clk 0:00:13]} 35. Rxh5 {[%clk 0:02:00.4]} 35... Be4 {[%clk 0:00:11.6]}
36. Rh2 {[%clk 0:01:46.4]} 36... Bf5 {[%clk 0:00:12.2]} 37. Rf2 {[%clk
0:01:39.3]} 37... Kd8 {[%clk 0:00:13]} 38. Kc3 {[%clk 0:01:30]} 38... Ke7 {[%clk
0:00:14.3]} 39. Ng8+ {[%clk 0:01:26.6]} 39... Ke6 {[%clk 0:00:14.8]} 40. Nh6
{[%clk 0:01:27.3]} 40... Ra1 {[%clk 0:00:14.2]} 41. a4 {[%clk 0:01:25.2]} 41...
Rh1 {[%clk 0:00:14.6]} 42. Re2+ {[%clk 0:01:25.7]} 42... Kf6 {[%clk 0:00:15.6]}
43. Ng8+ {[%clk 0:01:27]} 43... Kg7 {[%clk 0:00:16.5]} 44. Ne7 {[%clk
0:01:27.1]} 44... Bd7 {[%clk 0:00:16.4]} 45. Rd2 {[%clk 0:01:21.5]} 45... d5
{[%clk 0:00:16]} 46. Kd4 {[%clk 0:01:19.4]} 46... Re1 {[%clk 0:00:15.7]} 47.
Rg2+ {[%clk 0:01:18.7]} 47... Kf6 {[%clk 0:00:13.9]} 48. Ng8+ {[%clk 0:01:19.9]}
48... Kf5 {[%clk 0:00:15.4]} 49. Kc5 {[%clk 0:01:20.8]} 49... Kxf4 {[%clk
0:00:15]} 50. Rf2+ {[%clk 0:01:21.6]} 50... Ke3 {[%clk 0:00:15.7]} 51. Rxf7
{[%clk 0:01:22.6]} 51... Be6 {[%clk 0:00:16.1]} 52. Re7 {[%clk 0:01:22.3]} 52...
Kd2 {[%clk 0:00:17.5]} 53. Nf6 {[%clk 0:01:19.1]} 53... Bf5 {[%clk 0:00:18.4]}
54. Rxe1 {[%clk 0:01:18.9]} 54... Kxe1 {[%clk 0:00:19.8]} 55. c3 {[%clk
0:01:20.5]} 55... Bc2 {[%clk 0:00:20.5]} 56. b4 {[%clk 0:01:20.9]} 56... Bxa4
{[%clk 0:00:21.5]} 57. Nd7 {[%clk 0:01:08.9]} 57... Kd2 {[%clk 0:00:22.3]} 58.
Kd4 {[%clk 0:01:10.3]} 58... Bb5 {[%clk 0:00:18]} 59. Nc5 {[%clk 0:01:06.1]}
59... Kc2 {[%clk 0:00:17.6]} 60. Nb7 {[%clk 0:01:07]} 60... Kb3 {[%clk
0:00:17.6]} 61. Na5+ {[%clk 0:01:02.2]} 61... Kb2 {[%clk 0:00:18.6]} 62. Nb7
{[%clk 0:01:01.1]} 62... Kc2 {[%clk 0:00:19.8]} 63. Nc5 {[%clk 0:01:02.4]} 63...
Kb2 {[%clk 0:00:21]} 64. Nb7 {[%clk 0:01:03.6]} 1/2-1/2